fUSD/lending_fUSD_20240601
["ID","MTS","AMOUNT","RATE_DAILY","PERIOD"]
[328357134,1717228240628,-151.8,0.0001399,2]
[328357135,1717228240637,-151.8,0.0001399,2]
[328357136,1717228240646,-151.8,0.0001399,2]
[328357137,1717228240656,-151.8,0.0001399,2]
[328357138,1717228240665,-151.8,0.0001399,2]
[328357139,1717228240674,-57.81769095,0.0001399,2]
[328357140,1717228241360,-1.373e-05,0.0001399,2]
[328357143,1717228241427,-6.7e-05,0.0001399,2]
[328357144,1717228241439,-93.98222832,0.0001399,2]
[328357145,1717228241452,-151.8,0.0001399,2]
[328357147,1717228241461,-151.8,0.0001399,2]
[328357149,1717228241470,-151.8,0.0001399,2]
[328357151,1717228241480,-151.8,0.0001399,2]
[328357152,1717228241489,-151.8,0.0001399,2]
[328357153,1717228241499,-57.34114013,0.0001399,2]
[328357154,1717228241514,-94.45885987,0.0001399,2]
[328357155,1717228241524,-151.8,0.0001399,2]
[328357156,1717228241533,-151.8,0.0001399,2]
[328357157,1717228241543,-142.33114013,0.0001399,2]
[328357163,1717228243219,-9.46885987,0.0001399,2]
[328357164,1717228243228,-151.8,0.0001399,2]
[328357165,1717228243238,-151.8,0.0001399,2]
[328357166,1717228243247,-151.8,0.0001399,2]
[328357167,1717228243256,-151.8,0.0001399,2]
[328357168,1717228243265,-151.8,0.0001399,2]
[328357169,1717228243274,-151.8,0.0001399,2]
[328357170,1717228243284,-151.8,0.0001399,2]
[328357171,1717228243294,-151.8,0.0001399,2]
[328357172,1717228243303,-151.8,0.0001399,2]
[328357173,1717228243312,-151.8,0.0001399,2]
[328357174,1717228243322,-151.8,0.0001399,2]
[328357175,1717228243331,-151.8,0.0001399,2]
[328357176,1717228243341,-151.8,0.0001399,2]
[328357177,1717228243350,-151.8,0.0001399,2]
[328357178,1717228243360,-151.8,0.0001399,2]
[328357179,1717228243369,-3095.3767325,0.00013998,2]
[328357180,1717228243378,-379.66951786,0.00013998,2]
[328357181,1717228243388,-155.53330894,0.00013998,2]
[328357182,1717228243397,-155.46724689,0.00013998,2]
[328357183,1717228243407,-155.0,0.00013998,2]
[328357184,1717228243417,-172.3186001,0.00013998,2]
[328357185,1717228243426,-432.95318817,0.00013998,2]
[328357186,1717228243435,-4180.36012364,0.00013998,2]
[328357187,1717228243443,-313.77052622,0.00013998,2]
[328357188,1717228243455,-252.09418008,0.00013998,2]
[328357189,1717228243463,-1217.07802414,0.00013998,2]
[328357190,1717228243473,-493.75500671,0.00013998,2]
[328357191,1717228243482,-546.50660475,0.00013998,2]
[328357192,1717228243493,-716.49447026,0.00013998,2]
[328357193,1717228243502,-2603.59675967,0.00013998,2]
[328357194,1717228243511,-347.54742763,0.00013998,2]
[328357195,1717228243521,-1278.31312815,0.00013999,2]
[328357196,1717228243532,-699.55778311,0.00013999,2]
[328357197,1717228243541,-12815.09879923,0.00013999,2]
[328357198,1717228243551,-996451.93419964,0.00014,2]
[328357199,1717228243598,-369.04818863,0.00014,2]
[328357200,1717228243625,-3535.58251478,0.00014,2]
[328357209,1717228543657,-333.70241326,0.00013847,2]
[328357210,1717228543682,-306.29758674,0.00013847,2]
[328357213,1717228759991,391.27,0.00033151,120]
[328357214,1717228804993,-333.70241326,0.00013737,2]
[328357215,1717228805017,-2367.15501921,0.00013737,2]
[328357216,1717228805040,-268.8327842,0.00013738,2]
[328357217,1717228805062,-4753.56216164,0.00013738,2]
[328357218,1717228805084,-1942.98018242,0.00013739,2]
[328357219,1717228805105,-2004.73823716,0.00013739,2]
[328357220,1717228805129,-687.6604682,0.00013739,2]
[328357221,1717228805150,-168.24995621,0.0001374,2]
[328357222,1717228805173,-234.75464597,0.0001374,2]
[328357223,1717228805195,-155.0,0.0001374,2]
[328357224,1717228805218,-4285.51253231,0.0001374,2]
[328357225,1717228805241,-1181.7656568,0.0001374,2]
[328357226,1717228805263,-429.14560452,0.00013741,2]
[328357227,1717228805285,-657.97669336,0.00013741,2]
[328357228,1717228805307,-155.0,0.00013741,2]
[328357229,1717228805328,-158.0964661,0.00013741,2]
[328357230,1717228805351,-155.0,0.00013741,2]
[328357231,1717228805373,-214.94886096,0.00013742,2]
[328357232,1717228805394,-155.0,0.00013742,2]
[328357233,1717228805422,-155.0,0.00013742,2]
[328357234,1717228805445,-318.61145935,0.00013743,2]
[328357235,1717228805467,-214.94886096,0.00013743,2]
[328357236,1717228805491,-1015.55899625,0.00013748,2]
[328357237,1717228805513,-155.0,0.0001384,2]
[328357238,1717228805538,-535.5541103,0.0001384,2]
[328357239,1717228805559,-960.57363014,0.00013843,2]
[328357240,1717228805582,-690097.26834136,0.00013843,2]
[328357241,1717228805608,-3899.0556,0.00013848,2]
[328357242,1717228805629,-180.49244642,0.00013848,2]
[328357243,1717228805650,-180.49244642,0.000139,2]
[328357244,1717228805672,-159.45291897,0.000139,2]
[328357245,1717228805693,-176.83927421,0.000139,2]
[328357246,1717228805716,-2545.90313152,0.000139,2]
[328357247,1717228805738,-779.04846983,0.000139,2]
[328357248,1717228805759,-191.42788978,0.000139,2]
[328357249,1717228805780,-174.30997392,0.000139,2]
[328357250,1717228805802,-1066.71897713,0.00013998,2]
[328357251,1717228805823,-268.59558881,0.00013998,2]
[328357252,1717228805846,-155.30041863,0.00013998,2]
[328357253,1717228805868,-156.14782945,0.00013998,2]
[328357254,1717228805889,-155.43220333,0.00013998,2]
[328357255,1717228805910,-271.71951986,0.00013998,2]
[328357256,1717228805932,-3057.08172932,0.00013998,2]
[328357257,1717228805953,-272.59168575,0.00013998,2]
[328357258,1717228805975,-155.74732272,0.00013998,2]
[328357259,1717228805996,-3288.60966713,0.00013998,2]
[328357260,1717228806018,-189.42781049,0.00013998,2]
[328357261,1717228806040,-306.17517016,0.00013998,2]
[328357262,1717228806061,-1051.47566796,0.00013998,2]
[328357263,1717228806083,-155.51016798,0.00013998,2]
[328357264,1717228806105,-155.76551261,0.00013998,2]
[328357265,1717228806127,-645.95513848,0.00013998,2]
[328357266,1717228806148,-156.00145897,0.00013998,2]
[328357267,1717228806170,-267.8554768,0.00013998,2]
[328357268,1717228806191,-155.55985314,0.00013998,2]
[328357269,1717228806214,-191.66157986,0.00013998,2]
[328357270,1717228806238,-196.62085841,0.00013998,2]
[328357271,1717228806260,-453.0,0.00013998,2]
[328357272,1717228806281,-155.21102934,0.00013998,2]
[328357273,1717228806302,-237.28714739,0.00013998,2]
[328357274,1717228806323,-155.65968226,0.00013998,2]
[328357275,1717228806345,-210.10333198,0.00013998,2]
[328357276,1717228806366,-1064.51850023,0.00013998,2]
[328357277,1717228806387,-531.68386938,0.00013998,2]
[328357278,1717228806411,-642.62231712,0.00013998,2]
[328357279,1717228806432,-192.8968547,0.00013998,2]
[328357280,1717228806457,-541.08160965,0.00013998,2]
[328357281,1717228806482,-166.16771595,0.00013998,2]
[328357282,1717228806506,-156.02295511,0.00013998,2]
[328357283,1717228806533,-207.25116372,0.00013998,2]
[328357284,1717228806555,-306.44526837,0.00013998,2]
[328357285,1717228806575,-155.58479039,0.00013998,2]
[328357286,1717228806599,-156.80126126,0.00013998,2]
[328357287,1717228806620,-156.76647876,0.00013998,2]
[328357288,1717228806641,-161.24666733,0.00013998,2]
[328357289,1717228806662,-155.81904054,0.00013998,2]
[328357290,1717228806683,-211.02279903,0.00013998,2]
[328357291,1717228806704,-156.09155198,0.00013998,2]
[328357292,1717228806726,-155.38673951,0.00013998,2]
[328357293,1717228806750,-155.68551938,0.00013998,2]
[328357294,1717228806771,-369.61030645,0.00013998,2]
[328357295,1717228806792,-207.45551021,0.00013998,2]
[328357296,1717228806812,-357.77244657,0.00013998,2]
[328357297,1717228806833,-284.47667412,0.00013998,2]
[328357298,1717228806855,-180.41296703,0.00013998,2]
[328357299,1717228806875,-190.24426675,0.00013998,2]
[328357300,1717228806897,-1651.91112842,0.00013998,2]
[328357301,1717228806917,-155.69171516,0.00013998,2]
[328357302,1717228806939,-1687.73622045,0.00013998,2]
[328357303,1717228806960,-346.17560194,0.00013998,2]
[328357304,1717228806982,-208.41308782,0.00013998,2]
[328357305,1717228807003,-701.43132,0.00013998,2]
[328357306,1717228807024,-230.26324739,0.00013998,2]
[328357307,1717228807046,-207.3985061,0.00013998,2]
[328357308,1717228807066,-249.02412338,0.00013998,2]
[328357309,1717228807088,-291.96107167,0.00013998,2]
[328357310,1717228807244,-327.2248454,0.00013998,2]
[328357311,1717228807266,-220.84264215,0.00013998,2]
[328357312,1717228807288,-155.9308215,0.00013998,2]
[328357313,1717228807311,-1386.50548993,0.00013998,2]
[328357314,1717228807336,-157.48411225,0.00013998,2]
[328357315,1717228807358,-155.67316232,0.00013998,2]
[328357316,1717228807379,-155.3839327,0.00013998,2]
[328357317,1717228807400,-3105.91132803,0.00013998,2]
[328357318,1717228807423,-170.9459111,0.00013998,2]
[328357319,1717228807446,-324.6854332,0.00013998,2]
[328357320,1717228807468,-490.8225388,0.00013998,2]
[328357321,1717228807492,-804.68514182,0.00013998,2]
[328357322,1717228807514,-1140.42521785,0.00013998,2]
[328357323,1717228807537,-3011.78207583,0.00013998,2]
[328357324,1717228807559,-156.07275302,0.00013998,2]
[328357325,1717228807580,-156.60759971,0.00013998,2]
[328357326,1717228807602,-789.12357546,0.00013998,2]
[328357327,1717228807623,-156.40090215,0.00013998,2]
[328357328,1717228807645,-329.51037709,0.00013998,2]
[328357329,1717228807667,-163.39332259,0.00013998,2]
[328357330,1717228807688,-1765.48627875,0.00013998,2]
[328357331,1717228807710,-190.52131642,0.00013998,2]
[328357332,1717228807732,-410.00321735,0.00013998,2]
[328357333,1717228807754,-13831.24388152,0.00013998,2]
[328357334,1717228807778,-424.7108407,0.00013999,2]
[328357335,1717228807800,-4432.09212318,0.00013999,2]
[328357336,1717228807823,-5569.04084293,0.00013999,2]
[328357337,1717228807847,-4383754.17587489,0.00014,2]
[328357338,1717228807868,-553.01267111,0.00014,2]
[328357339,1717228807888,-2099.77535,0.00014,2]
[328357340,1717228817354,463.32142799,0.00013998,2]
[328357341,1717228819795,5700.01281849,0.00013998,2]
[328357346,1717229141337,-263.45707997,0.00013597,2]
[328357347,1717229141355,-359.0,0.00013598,2]
[328357348,1717229141374,-857.04551482,0.00013667,2]
[328357349,1717229237171,-308.30372798,0.00013567,2]
[328357350,1717229237193,-443.30628502,0.00013667,2]
[328357351,1717229237213,-155.0,0.00013667,2]
[328357352,1717229237234,-12.99095575,0.00013667,2]
[328357366,1717229432430,-327.68447059,0.00013567,2]
[328357367,1717229432440,-909.57070764,0.00013567,2]
[328357368,1717229432450,-136.01482177,0.00013666,2]
[328357369,1717229432462,-74.66784127,0.00013666,2]
[328357370,1717229432471,-150.0,0.00013666,2]
[328357371,1717229432480,-4302.80412581,0.00013667,2]
[328357372,1717229432492,-522.3297664,0.00013667,2]
[328357373,1717229432553,-1107.23300916,0.00013667,2]
[328357374,1717229432599,-454.19425517,0.00013667,2]
[328357375,1717229432656,-33283.68165129,0.00013667,2]
[328357376,1717229432669,-280.56667432,0.00013667,2]
[328357410,1717229438736,-508351.46294802,0.00013667,2]
[328357411,1717229438746,-155.0,0.00013667,2]
[328357412,1717229438755,-20247.35363618,0.00013667,2]
[328357413,1717229438765,-300.58094727,0.00013667,2]
[328357414,1717229438775,-10998.6704,0.00013898,2]
[328357415,1717229438785,-412.45466168,0.00013908,2]
[328357416,1717229438796,-376.93497872,0.00013958,2]
[328357417,1717229438805,-256.32381117,0.00013997,2]
[328357432,1717229440960,-493.40288223,0.00013997,2]
[328357433,1717229441806,-2061.4970974,0.00013997,2]
[328357471,1717229443454,-475.67259041,0.00013997,2]
[328357472,1717229443466,-1466.66578043,0.00013997,2]
[328357473,1717229443475,-333.70241326,0.00013997,2]
[328357474,1717229443484,-410.2235979,0.00013998,2]
[328357475,1717229443494,-987.47515556,0.00013998,2]
[328357476,1717229443505,-1123.60484444,0.00013998,2]
[328357477,1717229443514,-200.0,0.00014,2]
[328357478,1717229443523,-2648.4944484,0.00014,2]
[328357479,1717229443618,-1309.3021398,0.00014,2]
[328357480,1717229443630,-1625.0834118,0.00014,2]
[328357481,1717229443639,-161.19403122,0.00014046,2]
[328357482,1717229443649,-271.11776969,0.00014046,2]
[328357483,1717229443658,-247.86480488,0.00014046,2]
[328357484,1717229443667,-543.98502783,0.00014046,2]
[328357485,1717229443676,-367.32,0.00014046,2]
[328357486,1717229443685,-1664.95,0.00014046,2]
[328357487,1717229443694,-1165.02,0.00014046,2]
[328357488,1717229443704,-168.34712089,0.00014047,2]
[328357489,1717229443714,-196.47169359,0.00014047,2]
[328357490,1717229443724,-159.03982413,0.00014047,2]
[328357491,1717229443733,-391.13709729,0.00014047,2]
[328357492,1717229443743,-223.27147279,0.00014047,2]
[328357493,1717229443752,-163.8,0.00014047,2]
[328357494,1717229443761,-3058.14,0.00014047,2]
[328357495,1717229443770,-302.72234584,0.00015,2]
[328357496,1717229443779,-5138.95871003,0.00015,2]
[328357497,1717229443788,-621.95314255,0.00015,2]
[328357498,1717229443797,-2545.90313147,0.00015655,2]
[328357499,1717229443808,-167.0,0.00015831,2]
[328357500,1717229443817,-661.51,0.00015845,2]
[328357501,1717229443826,-909.57070762,0.00016372,2]
[328357502,1717229443835,-167.69,0.00017063,2]
[328357503,1717229443844,-662.3903507,0.000171,2]
[328357504,1717229443856,-250.0,0.00017147,2]
[328357505,1717229443866,-1859.69,0.00017324,2]
[328357506,1717229443876,-250.0,0.00017366,2]
[328357507,1717229443885,-2545.90313147,0.00017409,2]
[328357508,1717229443894,-1000.0,0.00017574,2]
[328357509,1717229443903,-200.0,0.0001761,2]
[328357510,1717229443912,-171.23,0.00017679,2]
[328357511,1717229443922,-935.49,0.00017901,2]
[328357512,1717229443931,-661.51,0.00018109,2]
[328357513,1717229443941,-167.69,0.000182,2]
[328357514,1717229443951,-500.0,0.00018205,2]
[328357515,1717229443960,-159.45291896,0.00018725,2]
[328357516,1717229443973,-2545.90313147,0.00019164,2]
[328357517,1717229443982,-909.57070762,0.00019176,2]
[328357518,1717229443991,-500.0,0.00019178,2]
[328357520,1717229444001,-236.20903743,0.00019178,2]
[328357521,1717229444010,-7765.47778459,0.000192,2]
[328357522,1717229444019,-3893.61308804,0.000192,2]
[328357523,1717229444029,-167.69,0.00019338,2]
[328357524,1717229444039,-277.62899813,0.00019451,2]
[328357525,1717229444048,-1000.0,0.00019771,2]
[328357526,1717229444058,-177.438,0.00019775,2]
[328357527,1717229444067,-812.0226048,0.0002,2]
[328357528,1717229444077,-291.61672782,0.0002,2]
[328357529,1717229444086,-187.83162443,0.0002,2]
[328357530,1717229444095,-257.5929249,0.0002,2]
[328357531,1717229444104,-3439.78804131,0.0002,2]
[328357532,1717229444113,-200.0,0.0002,2]
[328357533,1717229444122,-752.03196948,0.0002,2]
[328357534,1717229444131,-547.60965428,0.0002,2]
[328357535,1717229444141,-1782.45669007,0.0002,2]
[328357536,1717229444150,-6251.81374662,0.00020063,2]
[328357537,1717229444159,-1859.69,0.00020064,2]
[328357538,1717229444168,-661.51,0.00020373,2]
[328357539,1717229444178,-167.69,0.00020475,2]
[328357540,1717229444187,-2545.90313147,0.00020918,2]
[328357541,1717229444196,-150.0,0.00021917,2]
[328357542,1717229444206,-300.0,0.00021917,2]
[328357543,1717229444215,-450.0,0.00021917,2]
[328357544,1717229444224,-600.0,0.00021917,2]
[328357545,1717229444233,-750.0,0.00021917,2]
[328357546,1717229444242,-900.8301525,0.00021917,2]
[328357547,1717229444251,-391.27,0.00021918,2]
[328357548,1717229444260,-250.0,0.00021918,2]
[328357549,1717229444270,-1000.0,0.00021968,2]
[328357550,1717229444278,-909.57070762,0.00021981,2]
[328357551,1717229444288,-661.51,0.00022637,2]
[328357552,1717229444298,-2545.90313147,0.00022673,2]
[328357553,1717229444308,-1859.69,0.00022803,2]
[328357554,1717229444318,-151.64,0.0002299,2]
[328357555,1717229444326,-28814.49553176,0.00023,2]
[328357556,1717229444622,-1364.18608509,0.00023,2]
[328357557,1717229444632,-6823.92403971,0.00023,2]
[328357558,1717229444643,-329.40439122,0.00023,2]
[328357561,1717229447866,-11.63274724,0.0001386,2]
[328357562,1717229447879,-1918.59430276,0.0001386,2]
[328357563,1717229447888,-1930.22706,0.0001636,2]
[328357564,1717229447899,-7192.84,0.00018477,2]
[328357565,1717229447908,-1930.22705,0.0001886,2]
[328357566,1717229447917,-210.98841027,0.0002136,2]
[328357567,1717229447928,-645.27274604,0.0002136,2]
[328357568,1717229448046,-1073.96590369,0.0002136,2]
[328357569,1717229448055,-51497.62438139,0.00023,2]
[328357570,1717229487631,662.3903507,0.00012984,2]
[328357571,1717229489128,512.94605222,0.0003024,30]
[328357572,1717229507485,20247.35363618,0.00012984,2]
[328357573,1717229525495,4539.67189288,0.00012984,2]
[328357575,1717229717910,-155.0,0.00013566,2]
[328357576,1717229717939,-645.0,0.00013567,2]
[328357583,1717230339183,-263.45707997,0.00013566,2]
[328357584,1717230339203,-715.24936922,0.00013567,2]
[328357585,1717230339222,-497.88149133,0.00013567,2]
[328357596,1717230631917,-210.68266304,0.00013466,2]
[328357597,1717230631927,-226.65717228,0.00013467,2]
[328357598,1717230631938,-625.84319805,0.00013567,2]
[328357599,1717230631948,-2555.56000867,0.00013567,2]
[328357600,1717230631957,-498.3922,0.00013567,2]
[328357601,1717230631967,-25502.8660919,0.00013567,2]
[328357617,1717230637831,-768.65247308,0.00013567,2]
[328357636,1717230642623,-377.9458896,0.00013567,2]
[328357637,1717230642685,-272.12555121,0.00013567,2]
[328357641,1717230642750,-3993.44089421,0.00013567,2]
[328357643,1717230642760,-1748.5233,0.00013567,2]
[328357646,1717230642772,-87548.50158859,0.00013667,2]
[328357648,1717230642811,-4080.07601752,0.00013667,2]
[328357649,1717230642872,-616.55261655,0.00013667,2]
[328357650,1717230642931,-8831.0002663,0.00013667,2]
[328357651,1717230642943,-1224.5387,0.00013667,2]
[328357652,1717230642954,-1738.02113,0.00013667,2]
[328357653,1717230642992,-302.42132873,0.00013667,2]
[328357654,1717230643054,-6329.53151286,0.00013667,2]
[328357655,1717230643065,-7452.48,0.00013667,2]
[328357656,1717230643170,-138739.59065035,0.00013667,2]
[328357657,1717230643228,-507.11504628,0.00013667,2]
[328357659,1717230643543,-2820.04928238,0.00013667,2]
[328357660,1717230643666,-1597.7821369,0.00013667,2]
[328357869,1717230645962,-776.31930374,0.00013667,2]
[328357873,1717230645974,-33370.87876658,0.00013667,2]
[328357878,1717230645985,-1558.06970177,0.00013667,2]
[328358091,1717230722866,-150.0,0.00034371,120]
[328358093,1717230723060,-300.0,0.00034559,120]
[328358095,1717230730350,-300.0,0.00035014,120]
[328358096,1717230730381,-334.67978865,0.00035468,120]
[328358097,1717230846089,7607.59150779,0.000118,2]
[328358098,1717230871123,272.55018607,6.94e-05,2]
[328358099,1717230886063,3752.44242638,0.000118,2]
[328358100,1717230954820,205.0,9.8e-05,2]
[328358102,1717230994569,4007.86962418,0.0001,2]
[328358103,1717231039199,768.359999,0.00034974,120]
[328358104,1717231212409,25000.0,0.0003497,30]
[328358106,1717231292723,1868.98,0.00027068,30]
[328358107,1717231293105,1868.98,0.00030721,30]
[328358108,1717231341424,25000.0,0.00034974,30]
[328358109,1717231391435,351.86,0.00033151,120]
[328358110,1717231471316,25000.0,0.00034974,30]
[328358111,1717231541180,-333.70241326,0.00010071,2]
[328358112,1717231541200,-263.45707997,0.00010072,2]
[328358113,1717231541222,-873.4100294,0.00010092,2]
[328358114,1717231585149,25000.0,0.00034974,30]
[328358115,1717231623766,200.0,0.000129,4]
[328358116,1717231642071,165.29677628,9.997e-05,2]
[328358123,1717231745199,-251.2616522,0.00010091,2]
[328358124,1717231745222,-919.31804213,0.00010092,2]
[328358125,1717231745242,-155.0,0.00010097,2]
[328358126,1717231745262,-243.32628863,0.000101,2]
[328358127,1717231745284,-748.13,0.00010248,2]
[328358128,1717231745305,-263.45707997,0.00010982,2]
[328358129,1717231745327,-333.70241326,0.00010983,2]
[328358130,1717231745349,-150.0,0.00010986,2]
[328358131,1717231745370,-890.61442381,0.00011,2]
[328358132,1717231747115,-3334.25878258,0.00011,2]
[328358133,1717231747135,-500.0,0.00011579,2]
[328358134,1717231747155,-250.0,0.00011636,2]
[328358135,1717231747174,-1469.88989391,0.0001179,2]
[328358136,1717231747193,-714.45903721,0.00011798,2]
[328358137,1717231747213,-150.0,0.00011799,2]
[328358138,1717231747232,-396.85586225,0.00011799,2]
[328358139,1717231747254,-66050.57642405,0.000118,2]
[328358140,1717231749239,-123711.74,0.000118,2]
[328358143,1717231758108,-43114.2641451,0.000118,2]
[328358144,1717231758127,-967.0962549,0.000118,2]
[328358156,1717231831861,-251.19860556,0.00011799,2]
[328358157,1717231831871,-263.45707997,0.00011799,2]
[328358158,1717231831880,-163.52181447,0.000118,2]
[328358159,1717231832013,-393.95,0.000118,2]
[328358160,1717231832091,-140.38193063,0.000118,2]
[328358161,1717231832100,-283.41806937,0.00011918,2]
[328358162,1717231832111,-673.1725,0.00011918,2]
[328358163,1717231832953,-450.0,0.00011918,2]
[328358164,1717231833031,-988.48943063,0.00011918,2]
[328358166,1717231833042,-200.0,0.00012166,2]
[328358168,1717231833052,-250.0,0.00012272,2]
[328358170,1717231833062,-171.24,0.00012355,2]
[328358171,1717231833072,-4967.87343976,0.000124,2]
[328358172,1717231833085,-3053.6,0.00012463,2]
[328358173,1717231833095,-748.13,0.00012512,2]
[328358174,1717231833105,-849.99922482,0.00012686,2]
[328358177,1717231838375,-2208.14077518,0.00012686,2]
[328358178,1717231838384,-367.32,0.00012686,2]
[328358179,1717231838394,-150.99,0.00012686,2]
[328358180,1717231838403,-163.8,0.00012686,2]
[328358181,1717231838413,-156.1,0.00012689,2]
[328358182,1717231838422,-224.65950543,0.0001292,2]
[328358183,1717231838431,-195.42834588,0.0001299,2]
[328358184,1717231838440,-338.23342209,0.00012999,2]
[328358185,1717231838449,-17195.32795142,0.00013,2]
[328358186,1717231838584,-688231.27505712,0.00013,2]
[328358187,1717231838594,-156.1,0.0001302,2]
[328358188,1717231838603,-224.6595054,0.00013165,2]
[328358189,1717231838612,-156.1,0.00013351,2]
[328358190,1717231838622,-380.70037141,0.00013382,2]
[328358191,1717231838631,-1000.0,0.00013402,2]
[328358192,1717231838640,-224.6595054,0.0001341,2]
[328358193,1717231838650,-477.64002422,0.00013413,2]
[328358194,1717231838660,-234.53919679,0.00013466,2]
[328358195,1717231838673,-500.0,0.000135,4]
[328358196,1717231838682,-162.50156033,0.00013566,2]
[328358197,1717231838691,-180.01694355,0.00013566,2]
[328358198,1717231838700,-2727.07192377,0.00013566,2]
[328358199,1717231838710,-834.1673,0.00013566,2]
[328358200,1717231838719,-700.0,0.000136,4]
[328358201,1717231838728,-224.6595054,0.00013655,2]
[328358202,1717231838738,-151.68,0.00013656,2]
[328358203,1717231838747,-59924.05465006,0.00013666,2]
[328358216,1717231841442,-1215.43676724,0.00013666,2]
[328358217,1717231841455,-756.91337283,0.00013666,2]
[328358222,1717231842861,-1427.68941635,0.00013666,2]
[328358223,1717231843002,-23152.90113813,0.00013666,2]
[328358229,1717231846202,-315.37356774,0.00012982,2]
[328358230,1717231846212,-155.17252048,0.00013665,2]
[328358231,1717231846221,-263.45707997,0.00013665,2]
[328358232,1717231846231,-1061.36425102,0.00013666,2]
[328358233,1717231846279,-360.08234564,0.00013666,2]
[328358237,1717232019074,1635.35,0.00027068,30]
[328358238,1717232019453,1635.35,0.00030721,30]
[328358239,1717232139565,25000.0,0.00034974,30]
[328358241,1717232377987,25000.0,0.00034968,30]
[328358242,1717232459604,293.21,0.00033151,120]
[328358245,1717232553068,1430.93,0.00027068,30]
[328358246,1717232553410,1430.93,0.00030721,30]
[328358248,1717232613972,13536.31300897,0.00034,90]
[328358250,1717232857791,263.45707997,0.0001,2]
[328358251,1717232870420,530.45664041,0.0001,2]
[328358252,1717232874161,155.0,0.0001,2]
[328358253,1717232875121,687.6604682,0.0001,2]
[328358254,1717232883835,199.9,9.773e-05,2]
[328358255,1717232887144,2125.5,0.0001,2]
[328358256,1717232895183,162.38113332,0.0001,2]
[328358259,1717232897536,166.30963243,0.0001,2]
[328358260,1717232899604,237.8220404,0.0001,2]
[328358261,1717232901751,3014.3584163,0.0001,2]
[328358268,1717232953110,-1898.91513286,0.00010001,2]
[328358269,1717232953130,-1300.35179984,0.00010001,2]
[328358270,1717232953150,-429.14560452,0.00010002,2]
[328358271,1717232953171,-154.15186399,0.00010003,2]
[328358272,1717232953190,-499.99,0.00010219,2]
[328358273,1717232953210,-736.46,0.00010642,2]
[328358274,1717232953232,-359.0,0.00011639,2]
[328358275,1717232953253,-150.0,0.00011698,2]
[328358276,1717232953273,-16129.6301,0.00011699,2]
[328358277,1717232953293,-1547.59,0.000118,2]
[328358278,1717232953317,-818.84,0.00012079,2]
[328358279,1717232953338,-171.23,0.00012253,2]
[328358280,1717232953357,-9999.99,0.00012253,2]
[328358281,1717232953377,-150.99,0.00012253,2]
[328358282,1717232953399,-3363.24,0.00012261,2]
[328358283,1717232953419,-499.99,0.00012261,2]
[328358284,1717232953440,-150.99,0.00012261,2]
[328358285,1717232953459,-3109.47,0.0001234,2]
[328358286,1717232953478,-250.0,0.00012564,2]
[328358287,1717232953498,-1000.0,0.0001261,2]
[328358288,1717232953518,-234.14,0.00012613,2]
[328358289,1717232953536,-623.11,0.00012644,3]
[328358290,1717232953556,-234.14,0.00012647,2]
[328358291,1717232953575,-825.74,0.00012662,2]
[328358292,1717232953594,-234.14,0.00012682,2]
[328358293,1717232953614,-234.14,0.00012717,2]
[328358294,1717232953633,-234.14,0.00012751,2]
[328358295,1717232953652,-234.14,0.00012786,2]
[328358296,1717232953672,-234.14,0.0001282,2]
[328358297,1717232953692,-234.14,0.00012855,2]
[328358298,1717232953712,-234.14,0.0001289,2]
[328358299,1717232953730,-1000.0,0.000129,2]
[328358300,1717232953749,-736.46,0.00012906,2]
[328358301,1717232953771,-234.14,0.00012924,2]
[328358302,1717232953791,-234.14,0.00012959,2]
[328358303,1717232953812,-234.14,0.00012993,2]
[328358304,1717232953835,-234.14,0.00013028,2]
[328358305,1717232953860,-234.14,0.00013063,2]
[328358306,1717232953882,-234.14,0.00013097,2]
[328358307,1717232953905,-234.14,0.00013132,2]